Cogmind - Beta 11.1 @@@ ROGUE MODE // 2022.06.23 @ 09:39:34 Player: Demise Result: Destroyed by G-34 Mercenary with Small Laser Performance ------------- Evolutions (1) 500 Regions Visited (3) 600 Robots Destroyed (101) 505 Value Destroyed (2364) 2364 Prototype IDs (6) 120 Alien Tech Used (0) 0 Bonus (251) 251 TOTAL SCORE: 4340 Bonus ------- High Alert Combat Kills 251 Cogmind --------- Core Integrity 0/400 Matter 300/300 Energy 275/280 System Corruption 2% Temperature Cool (21) Movement Core (1550) Ox30 Location -9/Materials Parts ------- > --- POWER (1) -------- Heavy Ion Engine > --- PROPULSION (3) --- (None) > --- UTILITY (3) ------ Huge Storage Unit Improved Targeting Computer > --- WEAPON (2) ------- Katana Katana > --- INVENTORY (25) --- Compact Wheel Flight Unit Flight Unit Flight Unit Structural Scanner Visual Processing Unit Signal Interpreter Seismic Detector Core Shielding Utility Shielding Hardened Light Armor Plating Hacking Suite Hacking Suite Trap Extractor (0/4) Bomb Drone Bay (16/16) EM Pulse Cannon Heavy Assault Rifle Improved Light Cannon Grenade Launcher Mini Grenade Launcher Datajack Mace Maul Heavy Hammer Peak State ------------ > --- POWER ------------ Heavy Ion Engine > --- PROPULSION ------- Wheel Wheel Wheel > --- UTILITY ---------- Huge Storage Unit Improved Targeting Computer Hardened Light Armor Plating > --- WEAPON ----------- Katana Katana > --- INVENTORY -------- Compact Wheel Flight Unit Flight Unit Flight Unit Structural Scanner Visual Processing Unit Signal Interpreter Seismic Detector Core Shielding Utility Shielding Hacking Suite Hacking Suite Trap Extractor Bomb Drone Bay EM Pulse Cannon Heavy Assault Rifle Improved Light Cannon Grenade Launcher Mini Grenade Launcher Datajack Mace Maul Heavy Hammer [Rating: 22] Favorites ----------- Power Light Nuclear Core Engine Heavy Ion Engine Power Core Light Nuclear Core Propulsion Wheel Treads Light Treads Leg Aluminum Leg Wheel Wheel Utility Improved Targeting Computer Device Seismic Detector Storage Large Storage Unit Processor Improved Targeting Computer Protection Light Armor Plating Weapon Light Assault Rifle Energy Gun Beam Rifle Energy Cannon EM Pulse Cannon Ballistic Gun Light Assault Rifle Launcher Mini Grenade Launcher Impact Weapon Hammer Slashing Weapon Katana Build | -11 -10 -10 -9 ------- Run | Scr Mat Min Mat Slots Evolved 2 | . . . 2 Power . | . . . . Propulsion 1 | . . . 1 Utility 1 | . . . 1 Weapon . | . . . . Parts Attached 92 | 6 22 8 56 Power 6 | . 2 . 4 Engine 5 | . 1 . 4 Core 1 | . 1 . . Reactor . | . . . . Propulsion 31 | 2 8 3 18 Treads 3 | . . . 3 Leg 2 | . . . 2 Wheel 26 | 2 8 3 13 Hover . | . . . . Flight . | . . . . Utility 32 | 2 8 3 19 Device 7 | 1 2 1 3 Storage 6 | 1 . 1 4 Processor 2 | . 1 . 1 Hackware . | . . . . Protection 17 | . 5 1 11 Artifact . | . . . . Weapon 23 | 2 4 2 15 Energy Gun 2 | . . . 2 Energy Cannon 2 | . . . 2 Ballistic Gun 11 | 2 2 2 5 Ballistic Cannon . | . . . . Launcher 1 | . . . 1 Special Weapon . | . . . . Impact Weapon 2 | . 2 . . Slashing Weapon 5 | . . . 5 Piercing Weapon . | . . . . Special Melee Weapon . | . . . . Unidentified Prototypes 1 | . . . 1 Parts Lost 25 | . 6 . 19 Power 2 | . 1 . 1 Propulsion 13 | . 4 . 9 Utility 5 | . 1 . 4 Weapon 5 | . . . 5 Highest Loss Streak 4 | . 3 . 4 To Critical Strikes . | . . . . Average Slot Usage (%) 94 | . 94 100 93 Engine 6 | . 2 . 10 Core 4 | . 8 14 . Treads 1 | . . . 2 Wheel 25 | . 26 28 23 Device 2 | . 1 10 1 Storage 12 | . 14 14 11 Processor 6 | . . . 10 Protection 9 | . 11 3 9 Energy Gun 2 | . . . 4 Ballistic Gun 16 | . 26 24 8 Slashing Weapon 4 | . . . 8 Naked Turns . | . . . . Heaviest Build 97 | 9 21 25 97 Greatest Support 60 | 20 20 20 60 Greatest Overweight (x) 11 | . 1 1 11 Average Overweight (x) . | . . . 1 Largest Inventory Capacity 25 | 8 8 10 25 Average Capacity 13 | 5 8 9 17 Most Carried 25 | 6 8 10 25 Average Carried 12 | 3 7 9 16 Final Capacity 25 | 8 8 10 25 Final Carried 25 | 6 8 10 25 Class Distribution -------------------- 57% | Mutant 42% | Scavenger-Mutant Dominant Class ---------------- Mutant | -10/Materials Scavenger-Mutant | -10/Mines Scavenger-Mutant | -9/Materials Resources | -11 -10 -10 -9 ----------- Run | Scr Mat Min Mat Matter Collected 2219 | 312 668 158 1081 Remotely . | . . . . Salvage Created 3679 | 165 1033 169 2312 Parts 245 | 20 62 18 145 Haulers Intercepted 4 | . 2 . 2 Recyclers Shooed 2 | 1 . 1 . Parts Field Recycled . | . . . . Retrieved Matter . | . . . . Parts Self-Destructed . | . . . . Prevented . | . . . . Kills | -11 -10 -10 -9 ------- Run | Scr Mat Min Mat Combat Hostiles Destroyed 62 | . 17 3 42 Melee 10 | . . . 10 Guns 46 | . 17 3 26 Cannons 1 | . . . 1 AOE 5 | . . . 5 Classes Destroyed 13 | 2 6 1 4 Worker 16 | . 6 2 8 Builder 5 | . 1 1 3 Tunneler 8 | 5 1 2 . Hauler 4 | . 2 . 2 Recycler 2 | 1 . . 1 Operator 2 | . 1 . 1 Watcher 7 | . 3 . 4 Swarmer 3 | . . 3 . Grunt 46 | . 17 . 29 Brawler 1 | . . . 1 Duelist 1 | . . . 1 Protector 1 | . . . 1 Sentry 10 | . . . 10 Best Kill Streak 6 | 6 4 3 5 Combat Bots Only 5 | . 4 3 5 Max Kills in Single Turn 3 | 1 1 1 3 Gunslinging . | . . . . Exploded 3 | . . . 3 Melee 1 | . . . 1 Uniques/NPCs Destroyed . | . . . . Combat | -11 -10 -10 -9 -------- Run | Scr Mat Min Mat Damage Taken 3066 | . 892 185 1989 Core 583 | . 142 33 408 Absorbed by Shields . | . . . . Redirected to Shielding 26 | . . . 26 Regen/Repaired (Parts) 84 | . . . 84 Core Remaining (%) 65 | 100 . 30 . Volleys Fired 333 | 13 119 39 162 Largest 2 | 2 2 2 2 Hottest 126 | 40 40 40 126 Shots Fired 606 | 26 238 67 275 Gun 599 | 26 238 67 268 Cannon 2 | . . . 2 Launcher 5 | . . . 5 Special . | . . . . Kinetic 536 | 26 238 67 205 Thermal 50 | . . . 50 Explosive 5 | . . . 5 Electromagnetic 15 | . . . 15 Robot Hit Streak 25 | 14 17 9 25 Robot Miss Streak 5 | 3 5 3 3 Penetration Max . | . . . . Secondary Targets 1 | . 1 . . Max Gunslinging Chain 1 | . 1 . . Shots Hit Robots 459 | 17 148 36 258 Core Hits 168 | 9 58 13 88 Critical Kills 1 | . 1 . . Critical Parts Destroyed 1 | . . . 1 Critical Strikes 6 | . 1 . 5 Burn 3 | . . . 3 Destroy 2 | . 1 . 1 Sever 1 | . . . 1 Melee Attacks 62 | . 3 . 59 Impact 3 | . 3 . . Slashing 59 | . . . 59 Piercing . | . . . . Sneak Attacks 9 | . . . 9 Combat Hostiles 1 | . . . 1 Follow-up Attacks 6 | . . . 6 Damage Inflicted 7192 | 183 1565 372 5072 Guns 4836 | 183 1565 372 2716 Cannons 50 | . . . 50 Explosions 469 | . . . 469 Melee 1837 | . . . 1837 Ramming . | . . . . Kinetic 4039 | 183 1565 372 1919 Thermal 629 | . . . 629 Explosive 469 | . . . 469 Electromagnetic 218 | . . . 218 Impact . | . . . . Slashing 1837 | . . . 1837 Piercing . | . . . . Highest Corruption 2 | . . . 2 Average Corruption 2 | . . . 2 Corruption Purged . | . . . . Corruption Blocked . | . . . . Effects 15 | . . . 15 Message Errors 5 | . . . 5 Matter Fused 3 | . . . 3 Heat Flow Errors 2 | . . . 2 Energy Discharges 3 | . . . 3 Parts Rejected 1 | . . . 1 Data Loss (minor) 1 | . . . 1 Overload Shots . | . . . . Overflow Damage 248 | . . . 248 Projectiles . | . . . . Explosions . | . . . . Melee 248 | . . . 248 Knockbacks . | . . . . Impact . | . . . . Kinetic . | . . . . Secondary . | . . . . Self-Inflicted Damage . | . . . . Shots . | . . . . Rammed . | . . . . Targets Rammed . | . . . . Kicked . | . . . . Crushed . | . . . . Highest Temperature 254 | . 87 10 254 Average Temperature 31 | . 22 3 42 Received Heat Transfer 1413 | . 534 . 879 Siege Activations . | . . . . Robots Corrupted . | . . . . Combat Hostiles . | . . . . Parts Fried . | . . . . Impact Corruptions . | . . . . Robots Melted . | . . . . Combat Hostiles . | . . . . Parts Melted 3 | . . . 3 Heat Transferred 1776 | . . . 1776 Parts Sabotaged . | . . . . Parts Stolen . | . . . . Parts Stripped . | . . . . Power Chain Reactions . | . . . . Missiles Intercepted . | . . . . Alert | -11 -10 -10 -9 ------- Run | Scr Mat Min Mat Peak Influence 932 | 30 322 151 932 Initial 81 | . 19 81 9 Average 306 | 14 202 69 440 Maximum Alert Level 3 | . 1 . 3 Low Security (%) 37 | 100 39 100 16 Level 1 36 | . 60 . 35 Level 2 17 | . . . 33 Level 3 8 | . . . 15 Level 4 . | . . . . Level 5 . | . . . . High Security . | . . . . Max Security . | . . . . Squads Dispatched 15 | . 6 . 9 Investigation 9 | . 5 . 4 Extermination . | . . . . Reinforcement 3 | . 1 . 2 Assault 3 | . . . 3 Garrison . | . . . . Intercept . | . . . . Searches Triggered . | . . . . Construction Impeded . | . . . . Haulers Reinforced . | . . . . Active Scanning Responses . | . . . . Cargo Convoy Interrupts . | . . . . Stealth | -11 -10 -10 -9 --------- Run | Scr Mat Min Mat Distress Signals 4 | . 1 . 3 Communications Jammed . | . . . . Distress Signals . | . . . . Times Spotted 108 | . 29 3 76 Peak Tracking Total 11 | . 4 3 11 Tactical Retreats 11 | . 1 . 10 Traps | -11 -10 -10 -9 ------- Run | Scr Mat Min Mat Traps Triggered 3 | . 2 . 1 Indirectly . | . . . . Trap Hack Attempts . | . . . . Triggered . | . . . . Disarmed . | . . . . Reprogrammed . | . . . . Reused . | . . . . Traps Extracted . | . . . . Installed . | . . . . Triggered . | . . . . Machines | -11 -10 -10 -9 ---------- Run | Scr Mat Min Mat Machines Disabled 3 | . . . 3 Max in Single Turn 1 | . . . 1 Machines Sabotaged . | . . . . Garrisons Compromised . | . . . . Overloaded Fab Kills . | . . . . Hacking | -11 -10 -10 -9 --------- Run | Scr Mat Min Mat Machines Accessed 25 | . 9 1 15 Terminals 18 | . 7 . 11 Fabricators . | . . . . Repair Stations 2 | . 1 . 1 Recycling Units 3 | . 1 . 2 Scanalyzers 1 | . . . 1 Garrison Access . | . . . . Total Hacks 86 | . 32 1 53 Successful 55 | . 18 1 36 Failed 30 | . 14 . 16 Catastrophic 2 | . 2 . . Database Lockouts 1 | . . . 1 Manual 56 | . 28 . 28 Terminals 63 | . 27 . 36 Fabricators . | . . . . Repair Stations 9 | . 2 . 7 Recycling Units 10 | . 3 . 7 Scanalyzers 3 | . . . 3 Garrison Access . | . . . . Terminal Hacks 19 | . 7 1 11 Robot Analysis 8 | . 6 . 2 Prototype ID Bank 2 | . . . 2 Open Door 1 | . . 1 . Level Access Points 1 | . . . 1 Branch Access Points 1 | . . . 1 Terminal Index 2 | . 1 . 1 Locate Traps 2 | . . . 2 Hauler Manifests 2 | . . . 2 Fabricator Hacks . | . . . . Repair Station Hacks 7 | . 1 . 6 Scan Component 4 | . 1 . 3 Repair 3 | . . . 3 Recycling Unit Hacks 4 | . 2 . 2 Recycle Component 1 | . 1 . . Retrieve Components 3 | . 1 . 2 Scanalyzer 3 | . . . 3 Insert Component 2 | . . . 2 Analyze 1 | . . . 1 Garrison Access Hacks . | . . . . Unauthorized Hacks 22 | . 8 . 14 Terminals 19 | . 7 . 12 Track 1 | . . . 1 Botnet 16 | . 6 . 10 Operators 2 | . 1 . 1 Fabricators . | . . . . Repair Stations . | . . . . Recycling Units 3 | . 1 . 2 Tunnel 3 | . 1 . 2 Scanalyzers . | . . . . Garrison Access . | . . . . Data Cores Recovered . | . . . . Used . | . . . . Hacking Detections 22 | . 8 . 14 Full Trace Events 14 | . 7 . 7 Feedback Events . | . . . . Feedback Blocked . | . . . . Robot Schematics Acquired . | . . . . Robots Built . | . . . . Authchips . | . . . . Time . | . . . . Total Robot Build Rating . | . . . . Part Schematics Acquired 1 | . . . 1 Parts Built . | . . . . Authchips . | . . . . Time . | . . . . Total Part Build Rating . | . . . . Parts Repaired 3 | . . . 3 Time 84 | . . . 84 Parts Recycled 1 | . 1 . . Recycled Matter . | . . . . Retrieved Matter . | . . . . Retrieved Components 20 | . 3 . 17 Parts Scanalyzed 1 | . . . 1 Part Schematics Acquired 1 | . . . 1 Parts Damaged . | . . . . Bothacking | -11 -10 -10 -9 ------------ Run | Scr Mat Min Mat Used RIF Installer . | . . . . Robots Hacked . | . . . . Non-combat . | . . . . Combat . | . . . . Robot Hacks Applied . | . . . . Relay Couplers Released . | . . . . Fabnet Peak Effective % . | . . . . Robots Rewired . | . . . . Allies Hacked . | . . . . Hacks Repelled . | . . . . Allies | -11 -10 -10 -9 -------- Run | Scr Mat Min Mat Total Allies . | . . . . Largest Group . | . . . . Highest-Rated Group . | . . . . Highest-Rated Ally . | . . . . Total Orders . | . . . . Ally Attacks . | . . . . Total Damage . | . . . . Kills . | . . . . Allies Corrupted . | . . . . Allies Melted . | . . . . Intel | -11 -10 -10 -9 ------- Run | Scr Mat Min Mat Robot Analysis Total 8 | . 6 . 2 Derelict Logs Recovered 1 | . . 1 . Drone Launches . | . . . . Drone Recoveries . | . . . . Exploration | -11 -10 -10 -9 ------------- Run | Scr Mat Min Mat Turns Passed 4570 | 98 1289 712 2471 Spaces Moved 3145 | 57 1014 709 1365 Core 23 | 21 . . 2 Treads 78 | . . . 78 Legs 30 | . . . 30 Wheels 3014 | 36 1014 709 1255 Hover . | . . . . Flight . | . . . . Fastest Speed 50 | 50 80 80 80 Average Speed 95 | 68 81 83 113 Slowest Speed 600 | 80 95 95 600 Overloaded Moves . | . . . . Propulsion Burnouts . | . . . . Robots Hopped . | . . . . Cave-ins Triggered . | . . . . Exploration Rate (%) 71 | 4 99 96 88 Regions Visited 3 Branch Regions 1 Pre-discovered Areas 3 | . 1 . 2 Known Exits Taken 2 | . 1 1 . Unknown Exits Taken 1 | 1 . . . Scrap Searched 2 | . . 2 . Spaces Dug 3 | . 3 . . Terrain Destroyed 27 | . 3 . 24 Melee 3 | . 3 . . Projectile . | . . . . AOE 24 | . . . 24 Terrain Rammed . | . . . . Walls Destroyed . | . . . . Machines Disabled . | . . . . Actions | -11 -10 -10 -9 --------- Run | Scr Mat Min Mat Total 4072 | 92 1258 767 1955 Wait 338 | . 74 3 261 Move 3142 | 56 1013 708 1365 Hop . | . . . . Pick Up 57 | 13 13 3 28 Fast Attach 32 | 3 4 . 25 Attach 20 | 3 6 . 11 Detach 13 | . 2 . 11 Swap 40 | . 12 8 20 Drop 45 | 4 12 6 23 Fire 333 | 13 119 39 162 Melee 52 | . 3 . 49 Ram . | . . . . Kick . | . . . . Crush . | . . . . Escape Stasis . | . . . . Rewire . | . . . . Trap . | . . . . Miscellaneous . | . . . . Route ------- -11/Scrapyard -10/Materials (discovered 4 exits: *Mat x3 / *Min) -10/Mines (discovered 3 exits: *Mat x2 / [*Exi]) -9/Materials (discovered 4 exits: *Mat x3 / *Min) History --------- Turn | Location | Event 12 | -11/Scrapyard | Discovered new exit (range 15) 99 | -11/Scrapyard | Entered Materials 279 | -10/Materials | Discovered new exit (range 7) 330 | -10/Materials | Build established: Mutant 447 | -10/Materials | Discovered new exit (range 10) 458 | -10/Materials | Lost 3 parts (1p2n) 733 | -10/Materials | Discovered new exit (range 3) 1140 | -10/Materials | Core integrity fell below 50% 1217 | -10/Materials | Discovered new exit (range 11) 1274 | -10/Materials | Identified exit to Materials 1318 | -10/Materials | Identified exit to Mines 1388 | -10/Materials | Entered Mines 1508 | -10/Mines | Discovered exit to Materials (range 12) 1537 | -10/Mines | Discovered exit to Materials (range 5) 1540 | -10/Mines | Discovered new exit (range 7) 1622 | -10/Mines | Deemed a non-threat by the Exiles lab entrance 1651 | -10/Mines | Learned Materials security intel 1765 | -10/Mines | Found the Drone Emporium 1772 | -10/Mines | Found Prototype Device 1887 | -10/Mines | Build established: Scavenger-Mutant 2100 | -10/Mines | Entered Materials 2100 | -9/Materials | Evolved 2 slots: Propulsion x1, Utility x1 2246 | -9/Materials | Lost 4 parts (1p1n1u1w) 2455 | -9/Materials | Core integrity fell below 50% 2713 | -9/Materials | Lost 4 parts (2n1u1w) 2824 | -9/Materials | Discovered new exit (range 16) 3224 | -9/Materials | Discovered new exit (range 10) 3239 | -9/Materials | Identified Bomb Drone Bay 3303 | -9/Materials | Central database locked down 3606 | -9/Materials | Repaired Lgt. Armor Plating 3759 | -9/Materials | Discovered new exit (range 16) 3806 | -9/Materials | Discovered new exit (range 3) 4009 | -9/Materials | Build established: Mutant 4063 | -9/Materials | Repaired Hvy. Assault Rifle 4090 | -9/Materials | Repaired Wheel 4100 | -9/Materials | First assault squad dispatched 4193 | -9/Materials | Core integrity fell below 20% 4370 | -9/Materials | Identified exit to Materials 4370 | -9/Materials | Identified exit to Mines 4571 | -9/Materials | Destroyed by G-34 Mercenary with Small Laser Last Messages --------------- DISCOVERED[-2/Testing] 04512_ ALERT: Suspicious activity at Recycling Unit M002. Dispatching Investigation squad. 04524_ C-30 ARC bursts open, deploying its payload. 04524_ G-47 Trooper unfolds itself. 04524_ G-34 Mercenary unfolds itself. 04524_ B-36 Bruiser unfolds itself. 04524_ M-13 Machinist unfolds itself. 04540_ Katana follow-up attack on G-34 Mercenary. 04545_ Wheel destroyed. 04547_ Destroyed Aluminum Leg. 04550_ Destroyed Sml. Laser. 04550_ G-34 Mercenary destroyed. 04553_ Katana follow-up attack on C-30 ARC. 04554_ C-30 ARC bursts open, deploying its payload. 04554_ G-47 Trooper unfolds itself. 04554_ G-34 Mercenary unfolds itself. 04556_ G-47 Trooper Aluminum Leg severed. 04557_ Wheel destroyed. 04565_ Hrd. Light Armor Plating destroyed. Map ----- +----------------------------------------------------+ | #???????????????????????????????????????? | | #???????????????????????????????????????? | | #############????????????????????????????????????# | | #????????????????????????????????????# | | #????????????????????????????????????# | | #????????????????????????????????????# | | !! #????????????????????????????????????# | | !! #?????????????????????????????######## | | ####+########????????#????????????????????# ## | | ## ########### #????????????????????# """ ## | | #???????????????#????# """ ## | | T #?????????????# ???# """ ## | | ! *= #???????????????# ??# ## | | ## ###+####### #?????????????????# ?# ## | | ?####### %= [##??????????????????## #? ?# | | ???????# """ ## ?????????????????# %###+#### | | ???????# """ ## ?????????????????# ! | | ???????# """ ## ?????????????????+ | | ???????# ##%?????????????????# | | ???????# """ ##"?????????????????# ###+### | | ???????# """ ## ####?????????????######?# !# | | ???????# """ ## #????????????????????# # | | ???????# ## #?###########????????# # | | ???????###/####### #?# #????????# [*=# | | ?????????# #?????# ### #????????# = # | | ?????????# #?#####+## #@ g + ??# = # | | ?????????# #?#]!! # *g%g i #????????# # | | ?????????# #?#]! =[ # g!#g #?? ?????# # | | ?????????# #?#!![*= + # #?? "????# # | | ########?# #?# **== # r # #?? ????###### | | #?# #?# "Y"!=# # #?? ?????????# | | "" """ ### ### """ # ##############/########## | | "" """ # ####### # | | "" """ + =######### | | # % | | # ##########+############### """o | | ## ####### #?????????# """ | | ##% # """ # #?????????# """ | | ####+#### # "T" # """ """ #?????????# """ " | | #?# #??#m # # """ """ #??######## T | | ### #### # [ # """ """ #??# " | | / [#= # #??# | | ## %+* # #??# | | ## # """ # #??# ############## | | ## % # """ ###########??# # #??#### | | ## # """ #????????????# # " #??# | | ### # #????????????# # T #??# "" | | #######?????######## # " #??# "" | | ^ ##+############?# # + [ #??# "" | | ^ #/%=* %#?# # #%= #??# | +----------------------------------------------------+ Best States ------------- Heat Dissipation 28 Energy Generation 14 Energy Capacity 280 Matter Stores 300 Matter Capacity 300 Sight Range 16 Terrain Scan Density 10 Armor Coverage 225 Core Shielding 20 Evasion (%) 50 Targeting Accuracy 6 Recoil Reduction 3 Item Schematics ----------------- Hacking Suite | -9/Materials | Scanalyzed Robot Schematics ------------------ None Fabricated ------------ Nothing Alien Tech Used ----------------- None Achievements -------------- None Challenges ------------ None Game ------ Seed MeleeFrostChip Manual? 0 Play Time 00:47:00 Cumulative 636.8 hours Start 2022.06.23 @ 08:53:40 End 2022.06.23 @ 09:39:34 Sessions 1 Manual Loads 0 Difficulty Rogue Special Mode None Game No. 509 Rogue 509 Adventurer 0 Explorer 0 Win Type - Total 8 Types 7/0/0/1/0/0/0/0/0 Lore% 74 Gallery% 86 Achievement% 68 Wizard Run 0 Options --------- ASCII 0 Keyboard 1 Movement Numpad Keybinds 0 Fullscreen 1 Font 12/Terminus Map View 83x54 Tactical HUD 1 Map Filters NONE Filters NONE Steam 1 RUN: e195df11-2e86-4ce6-8f65-09b0fc1c2ff1